fUSD/lending_fUSD_20250702
["ID","MTS","AMOUNT","RATE_DAILY","PERIOD"]
[369059328,1751447466823,-500.0,0.00018186,2]
[369059329,1751447466833,-500.0,0.00018186,2]
[369059330,1751447466842,-500.0,0.00018186,2]
[369059331,1751447466851,-500.0,0.00018186,2]
[369059332,1751447466861,-500.0,0.00018186,2]
[369059333,1751447466870,-500.0,0.00018186,2]
[369059334,1751447466879,-500.0,0.00018186,2]
[369059335,1751447466889,-500.0,0.00018186,2]
[369059336,1751447466899,-500.0,0.00018186,2]
[369059337,1751447466908,-500.0,0.00018186,2]
[369059338,1751447466919,-500.0,0.00018186,2]
[369059339,1751447466929,-500.0,0.00018186,2]
[369059340,1751447466938,-500.0,0.00018186,2]
[369059341,1751447466948,-500.0,0.00018186,2]
[369059342,1751447466957,-500.0,0.00018186,2]
[369059343,1751447466966,-500.0,0.00018186,2]
[369059344,1751447466976,-500.0,0.00018186,2]
[369059345,1751447466985,-500.0,0.00018186,2]
[369059346,1751447466994,-500.0,0.00018186,2]
[369059347,1751447467007,-500.0,0.00018186,2]
[369059348,1751447467016,-500.0,0.00018186,2]
[369059349,1751447467028,-500.0,0.00018186,2]
[369059350,1751447467037,-500.0,0.00018186,2]
[369059351,1751447467048,-500.0,0.00018186,2]
[369059352,1751447467057,-500.0,0.00018186,2]
[369059353,1751447467067,-500.0,0.00018186,2]
[369059354,1751447467076,-500.0,0.00018186,2]
[369059355,1751447467085,-500.0,0.00018186,2]
[369059356,1751447467094,-500.0,0.00018186,2]
[369059357,1751447467103,-500.0,0.00018186,2]
[369059358,1751447467112,-500.0,0.00018186,2]
[369059359,1751447467121,-500.0,0.00018186,2]
[369059360,1751447467131,-500.0,0.00018186,2]
[369059361,1751447467141,-500.0,0.00018186,2]
[369059362,1751447467150,-500.0,0.00018186,2]
[369059363,1751447467159,-500.0,0.00018186,2]
[369059364,1751447467170,-500.0,0.00018186,2]
[369059365,1751447467179,-500.0,0.00018186,2]
[369059366,1751447467189,-500.0,0.00018186,2]
[369059367,1751447467201,-500.0,0.00018186,2]
[369059368,1751447467210,-500.0,0.00018186,2]
[369059369,1751447467219,-500.0,0.00018186,2]
[369059370,1751447467228,-500.0,0.00018186,2]
[369059371,1751447467238,-500.0,0.00018186,2]
[369059372,1751447467247,-500.0,0.00018186,2]
[369059373,1751447467256,-500.0,0.00018186,2]
[369059374,1751447467265,-500.0,0.00018186,2]
[369059375,1751447467275,-500.0,0.00018186,2]
[369059376,1751447467284,-500.0,0.00018186,2]
[369059377,1751447467294,-500.0,0.00018186,2]
[369059378,1751447467303,-500.0,0.00018186,2]
[369059379,1751447467312,-500.0,0.00018186,2]
[369059380,1751447467322,-500.0,0.00018186,2]
[369059381,1751447467331,-500.0,0.00018186,2]
[369059382,1751447467340,-500.0,0.00018186,2]
[369059383,1751447467350,-500.0,0.00018186,2]
[369059384,1751447467359,-500.0,0.00018186,2]
[369059385,1751447467368,-500.0,0.00018186,2]
[369059386,1751447467378,-500.0,0.00018186,2]
[369059387,1751447467387,-500.0,0.00018186,2]
[369059388,1751447467396,-500.0,0.00018186,2]
[369059389,1751447467406,-500.0,0.00018186,2]
[369059390,1751447467415,-500.0,0.00018186,2]
[369059391,1751447467425,-500.0,0.00018186,2]
[369059392,1751447467434,-500.0,0.00018186,2]
[369059393,1751447467444,-500.0,0.00018186,2]
[369059394,1751447467453,-500.0,0.00018186,2]
[369059395,1751447467462,-500.0,0.00018186,2]
[369059396,1751447467471,-500.0,0.00018186,2]
[369059397,1751447467481,-500.0,0.00018186,2]
[369059398,1751447467490,-500.0,0.00018186,2]
[369059399,1751447467500,-500.0,0.00018186,2]
[369059400,1751447467509,-500.0,0.00018186,2]
[369059401,1751447467518,-500.0,0.00018186,2]
[369059402,1751447467528,-500.0,0.00018186,2]
[369059403,1751447467538,-500.0,0.00018186,2]
[369059404,1751447467548,-500.0,0.00018186,2]
[369059405,1751447467558,-500.0,0.00018186,2]
[369059406,1751447467567,-500.0,0.00018186,2]
[369059407,1751447467577,-500.0,0.00018186,2]
[369059408,1751447467586,-500.0,0.00018186,2]
[369059409,1751447467596,-500.0,0.00018186,2]
[369059410,1751447467605,-500.0,0.00018186,2]
[369059411,1751447467615,-500.0,0.00018186,2]
[369059412,1751447467624,-500.0,0.00018186,2]
[369059413,1751447467634,-500.0,0.00018186,2]
[369059414,1751447467643,-500.0,0.00018186,2]
[369059415,1751447467653,-500.0,0.00018186,2]
[369059416,1751447467662,-500.0,0.00018186,2]
[369059417,1751447467672,-500.0,0.00018186,2]
[369059418,1751447467682,-500.0,0.00018186,2]
[369059419,1751447467692,-500.0,0.00018186,2]
[369059420,1751447467701,-500.0,0.00018186,2]
[369059421,1751447467711,-500.0,0.00018186,2]
[369059422,1751447467720,-500.0,0.00018186,2]
[369059423,1751447467730,-500.0,0.00018186,2]
[369059424,1751447467739,-500.0,0.00018186,2]
[369059425,1751447467749,-500.0,0.00018186,2]
[369059426,1751447467758,-500.0,0.00018186,2]
[369059427,1751447467768,-500.0,0.00018186,2]
[369059428,1751447467778,-500.0,0.00018186,2]
[369059429,1751447467787,-500.0,0.00018186,2]
[369059430,1751447467796,-500.0,0.00018186,2]
[369059431,1751447467806,-500.0,0.00018186,2]
[369059432,1751447467816,-500.0,0.00018186,2]
[369059433,1751447467825,-500.0,0.00018186,2]
[369059434,1751447467835,-500.0,0.00018186,2]
[369059435,1751447467844,-500.0,0.00018186,2]
[369059436,1751447467853,-500.0,0.00018186,2]
[369059437,1751447467862,-500.0,0.00018186,2]
[369059438,1751447467872,-500.0,0.00018186,2]
[369059439,1751447467881,-500.0,0.00018186,2]
[369059440,1751447467891,-500.0,0.00018186,2]
[369059441,1751447467900,-500.0,0.00018186,2]
[369059442,1751447467909,-500.0,0.00018186,2]
[369059443,1751447467918,-500.0,0.00018186,2]
[369059444,1751447467927,-500.0,0.00018186,2]
[369059445,1751447467937,-500.0,0.00018186,2]
[369059446,1751447467946,-500.0,0.00018186,2]
[369059447,1751447467955,-500.0,0.00018186,2]
[369059448,1751447467964,-355.8,0.00018195,2]
[369059449,1751447467973,-168.93,0.00018243,2]
[369059450,1751447467983,-600.0,0.00018243,2]
[369059451,1751447467991,-600.0,0.00018243,2]
[369059452,1751447468001,-600.0,0.00018243,2]
[369059453,1751447468010,-600.0,0.00018243,2]
[369059454,1751447468019,-600.0,0.00018243,2]
[369059455,1751447468029,-600.0,0.00018243,2]
[369059456,1751447468038,-600.0,0.00018243,2]
[369059457,1751447468047,-600.0,0.00018243,2]
[369059458,1751447468057,-600.0,0.00018243,2]
[369059459,1751447468066,-600.0,0.00018243,2]
[369059460,1751447468077,-600.0,0.00018243,2]
[369059461,1751447468086,-600.0,0.00018243,2]
[369059462,1751447468095,-600.0,0.00018243,2]
[369059463,1751447468105,-600.0,0.00018243,2]
[369059464,1751447468114,-600.0,0.00018243,2]
[369059465,1751447468123,-600.0,0.00018243,2]
[369059466,1751447468133,-600.0,0.00018243,2]
[369059467,1751447468142,-600.0,0.00018243,2]
[369059468,1751447468152,-300.0,0.00018244,2]
[369059469,1751447468161,-300.0,0.00018244,2]
[369059470,1751447468171,-300.0,0.00018244,2]
[369059471,1751447468180,-150.0,0.00018245,2]
[369059472,1751447468190,-5377.15503081,0.00018245,2]
[369059473,1751447468203,-150.0,0.00018245,2]
[369059474,1751447468212,-30275.53342663,0.00018245,2]
[369059475,1751447468222,-500.0,0.00018245,2]
[369059476,1751447468231,-500.0,0.00018245,2]
[369059477,1751447468240,-500.0,0.00018245,2]
[369059478,1751447468250,-500.0,0.00018245,2]
[369059479,1751447468260,-500.0,0.00018245,2]
[369059480,1751447468271,-500.0,0.00018245,2]
[369059481,1751447468280,-500.0,0.00018245,2]
[369059482,1751447468290,-500.0,0.00018245,2]
[369059483,1751447468299,-500.0,0.00018245,2]
[369059484,1751447468309,-500.0,0.00018245,2]
[369059485,1751447468319,-500.0,0.00018245,2]
[369059486,1751447468329,-500.0,0.00018245,2]
[369059487,1751447468338,-526.0,0.00018245,2]
[369059488,1751447468348,-3430.582997,0.00018245,2]
[369059489,1751447468357,-3430.582997,0.00018245,2]
[369059490,1751447468366,-151.0,0.00018245,2]
[369059491,1751447468527,-311.08,0.00018247,2]
[369059492,1751447468537,-169.5,0.00018288,2]
[369059493,1751447468546,-208.9,0.000183,2]
[369059494,1751447468556,-600.0,0.00018322,2]
[369059495,1751447468565,-600.0,0.00018322,2]
[369059496,1751447468574,-600.0,0.00018322,2]
[369059497,1751447468583,-168.7955779,0.00018322,2]
[369059498,1751447468591,-3899.93322083,0.00018322,2]
[369059499,1751447468600,-1000.0,0.00018329,2]
[369059500,1751447468609,-300.0,0.00018355,2]
[369059501,1751447468618,-300.0,0.00018355,2]
[369059502,1751447468627,-300.0,0.00018355,2]
[369059503,1751447468636,-600.0,0.00018355,2]
[369059504,1751447468645,-600.0,0.00018355,2]
[369059505,1751447468654,-600.0,0.00018355,2]
[369059506,1751447468663,-600.0,0.00018355,2]
[369059507,1751447468672,-600.0,0.00018355,2]
[369059508,1751447468680,-1615.0,0.00018356,2]
[369059509,1751447468689,-643.0,0.00018356,2]
[369059510,1751447468698,-500.0,0.00018356,2]
[369059511,1751447468707,-500.0,0.00018356,2]
[369059512,1751447468717,-490.0,0.00018356,2]
[369059513,1751447468726,-490.0,0.00018356,2]
[369059514,1751447468736,-490.0,0.00018356,2]
[369059515,1751447468746,-490.0,0.00018356,2]
[369059516,1751447468756,-490.0,0.00018356,2]
[369059517,1751447468765,-490.0,0.00018356,2]
[369059518,1751447468775,-490.0,0.00018356,2]
[369059519,1751447468785,-157.4,0.00018356,2]
[369059520,1751447468794,-361.37152812,0.00018356,2]
[369059521,1751447468803,-500.0,0.00018356,2]
[369059522,1751447468813,-490.0,0.00018356,2]
[369059523,1751447468822,-620.52,0.00018356,2]
[369059524,1751447468831,-496.3938982,0.00018356,2]
[369059525,1751447468840,-490.0,0.00018356,2]
[369059526,1751447468849,-490.0,0.00018356,2]
[369059527,1751447468859,-296.1915629,0.00018356,2]
[369059528,1751447468868,-367.76236993,0.00018356,2]
[369059529,1751447468878,-490.0,0.00018356,2]
[369059530,1751447468888,-490.0,0.00018356,2]
[369059531,1751447468898,-490.0,0.00018356,2]
[369059532,1751447468907,-490.0,0.00018356,2]
[369059533,1751447468917,-255.26,0.00018356,2]
[369059534,1751447468927,-490.0,0.00018356,2]
[369059535,1751447468937,-490.0,0.00018356,2]
[369059536,1751447468946,-832.75,0.00018356,2]
[369059537,1751447468956,-435.42851532,0.00018356,2]
[369059538,1751447468965,-490.0,0.00018356,2]
[369059539,1751447468975,-542.41,0.00018356,2]
[369059540,1751447468985,-490.0,0.00018356,2]
[369059541,1751447468994,-490.0,0.00018356,2]
[369059542,1751447469004,-831.02,0.00018356,2]
[369059543,1751447469013,-490.0,0.00018356,2]
[369059544,1751447469024,-338.437699,0.00018356,2]
[369059545,1751447469034,-338.437699,0.00018356,2]
[369059546,1751447469044,-197.015284,0.00018356,2]
[369059547,1751447469061,-197.015284,0.00018356,2]
[369059548,1751447469071,-151.0,0.000184,2]
[369059549,1751447469081,-151.0,0.000184,2]
[369059550,1751447469091,-739.52425783,0.00018416,2]
[369059551,1751447469101,-1902.78446292,0.00018416,2]
[369059552,1751447469111,-2000.0,0.00018416,2]
[369059553,1751447469122,-1152.31762442,0.00018416,2]
[369059554,1751447469134,-223.0315306,0.00018434,2]
[369059555,1751447469146,-300.0,0.00018436,2]
[369059556,1751447469155,-490.0,0.00018453,2]
[369059557,1751447469165,-490.0,0.00018453,2]
[369059558,1751447469175,-6905.66837778,0.00018463,2]
[369059559,1751447469184,-28000.0,0.00018463,7]
[369059560,1751447469200,-208.9,0.00018464,2]
[369059561,1751447469214,-3277.0,0.00018527,2]
[369059562,1751447469225,-3278.81513,0.00018541,2]
[369059563,1751447469235,-400.0,0.0001857,2]
[369059564,1751447469245,-700.0,0.0001857,2]
[369059565,1751447469256,-180.0,0.000186,2]
[369059566,1751447469266,-210.0,0.000186,2]
[369059567,1751447469276,-1606.12948871,0.00018616,2]
[369059568,1751447469287,-205.0,0.00018629,2]
[369059569,1751447469297,-205.0,0.00018629,2]
[369059570,1751447469307,-205.0,0.00018629,2]
[369059571,1751447469317,-205.0,0.00018629,2]
[369059572,1751447469326,-205.0,0.00018629,2]
[369059573,1751447469337,-205.0,0.00018629,2]
[369059574,1751447469347,-230.0,0.00018629,2]
[369059575,1751447469357,-230.0,0.00018629,2]
[369059576,1751447469368,-230.0,0.00018629,2]
[369059577,1751447469379,-230.0,0.00018629,2]
[369059578,1751447469388,-208.9,0.00018629,2]
[369059579,1751447469397,-300.0,0.00018629,2]
[369059580,1751447469407,-300.0,0.00018629,2]
[369059581,1751447469417,-280.40338167,0.00018629,2]
[369059582,1751447469428,-1615.0,0.0001863,2]
[369059583,1751447469442,-643.0,0.0001863,2]
[369059584,1751447469451,-500.0,0.0001863,2]
[369059585,1751447469461,-500.0,0.0001863,2]
[369059586,1751447469472,-490.0,0.0001863,2]
[369059587,1751447469482,-490.0,0.0001863,2]
[369059588,1751447469493,-490.0,0.0001863,2]
[369059589,1751447469503,-490.0,0.0001863,2]
[369059590,1751447469513,-490.0,0.0001863,2]
[369059591,1751447469523,-490.0,0.0001863,2]
[369059592,1751447469533,-490.0,0.0001863,2]
[369059593,1751447469543,-153.0732472,0.0001863,2]
[369059594,1751447469552,-490.0,0.0001863,2]
[369059595,1751447469563,-620.52,0.0001863,2]
[369059596,1751447469572,-490.0,0.0001863,2]
[369059597,1751447469587,-490.0,0.0001863,2]
[369059598,1751447469597,-490.0,0.0001863,2]
[369059599,1751447469606,-490.0,0.0001863,2]
[369059600,1751447469616,-490.0,0.0001863,2]
[369059601,1751447469626,-490.0,0.0001863,2]
[369059602,1751447469635,-490.0,0.0001863,2]
[369059603,1751447469645,-490.0,0.0001863,2]
[369059604,1751447469655,-832.75,0.0001863,2]
[369059605,1751447469664,-490.0,0.0001863,2]
[369059606,1751447469674,-490.0,0.0001863,2]
[369059607,1751447469683,-214.59724359,0.0001863,2]
[369059608,1751447469693,-831.02,0.0001863,2]
[369059609,1751447469704,-282.75345764,0.0001863,2]
[369059610,1751447469714,-338.437699,0.0001863,2]
[369059611,1751447469723,-338.437699,0.0001863,2]
[369059612,1751447469734,-3430.582997,0.0001863,2]
[369059613,1751447469744,-3430.582997,0.0001863,2]
[369059614,1751447469753,-154.638663,0.0001863,2]
[369059615,1751447469762,-1750.0,0.0001863,2]
[369059616,1751447469772,-1000.0,0.00018695,2]
[369059617,1751447469781,-254.09541646,0.00018695,2]
[369059618,1751447469791,-1000.0,0.00018695,2]
[369059619,1751447469800,-490.0,0.00018727,2]
[369059620,1751447469810,-490.0,0.00018727,2]
[369059621,1751447469819,-1484.72371,0.00018891,2]
[369059622,1751447469829,-1065.7490072,0.00018891,2]
[369059623,1751447469839,-154.36545548,0.000189,2]
[369059624,1751447469848,-1400.0,0.000189,6]
[369059625,1751447469858,-300.0,0.00018903,2]
[369059626,1751447469867,-254.1037733,0.00018904,5]
[369059627,1751447469877,-1615.0,0.00018904,2]
[369059628,1751447469886,-643.0,0.00018904,2]
[369059629,1751447469895,-500.0,0.00018904,2]
[369059630,1751447469905,-490.0,0.00018904,2]
[369059631,1751447469914,-490.0,0.00018904,2]
[369059632,1751447469923,-490.0,0.00018904,2]
[369059633,1751447469932,-490.0,0.00018904,2]
[369059634,1751447469942,-490.0,0.00018904,2]
[369059635,1751447469951,-490.0,0.00018904,2]
[369059636,1751447469961,-490.0,0.00018904,2]
[369059637,1751447469970,-620.52,0.00018904,2]
[369059638,1751447469979,-490.0,0.00018904,2]
[369059639,1751447469988,-522.28342535,0.00018904,2]
[369059640,1751447469997,-490.0,0.00018904,2]
[369059641,1751447470006,-490.0,0.00018904,2]
[369059642,1751447470016,-490.0,0.00018904,2]
[369059643,1751447470024,-490.0,0.00018904,2]
[369059644,1751447470034,-490.0,0.00018904,2]
[369059645,1751447470042,-832.75,0.00018904,2]
[369059646,1751447470051,-490.0,0.00018904,2]
[369059647,1751447470061,-490.0,0.00018904,2]
[369059648,1751447470070,-831.02,0.00018904,2]
[369059649,1751447470079,-197.015284,0.00018904,2]
[369059650,1751447470088,-197.015284,0.00018904,2]
[369059651,1751447470097,-338.437699,0.00018935,2]
[369059652,1751447470106,-338.437696,0.00018935,2]
[369059653,1751447470115,-2500.0,0.00018964,2]
[369059654,1751447470125,-300.0,0.00018984,2]
[369059655,1751447470136,-2000.53542798,0.00019,2]
[369059656,1751447470146,-4032.10247688,0.00019,2]
[369059657,1751447470157,-1111.95164647,0.00019,2]
[369059658,1751447470166,-350.0,0.00019,2]
[369059659,1751447470175,-552.51,0.00019,7]
[369059660,1751447470184,-552.51,0.00019,7]
[369059661,1751447470194,-552.51,0.00019,7]
[369059662,1751447470209,-552.51,0.00019,7]
[369059663,1751447470218,-3877.02627334,0.00019,2]
[369059664,1751447470227,-25717.00534414,0.00019,2]
[369059665,1751447470237,-836.11932155,0.00019,7]
[369059666,1751447470247,-490.0,0.00019001,2]
[369059667,1751447470256,-490.0,0.00019001,2]
[369059668,1751447470265,-347.86628611,0.0001901,7]
[369059669,1751447470275,-1000.0,0.00019016,2]
[369059670,1751447470284,-446.45,0.00019017,2]
[369059671,1751447470293,-163.0,0.00019068,2]
[369059672,1751447470302,-598.04449534,0.00019177,2]
[369059673,1751447470311,-300.0,0.00019177,2]
[369059674,1751447470320,-300.0,0.00019177,2]
[369059675,1751447470330,-1000.0,0.00019178,2]
[369059676,1751447470341,-1615.0,0.00019178,2]
[369059677,1751447470353,-643.0,0.00019178,2]
[369059678,1751447470362,-500.0,0.00019178,2]
[369059679,1751447470371,-490.0,0.00019178,2]
[369059680,1751447470381,-490.0,0.00019178,2]
[369059681,1751447470390,-490.0,0.00019178,2]
[369059682,1751447470399,-490.0,0.00019178,2]
[369059683,1751447470408,-12500.0,0.00019178,2]
[369059684,1751447470418,-490.0,0.00019178,2]
[369059685,1751447470427,-490.0,0.00019178,2]
[369059686,1751447470436,-490.0,0.00019178,2]
[369059687,1751447470445,-620.52,0.00019178,2]
[369059688,1751447470454,-2618.33231702,0.00019178,2]
[369059689,1751447470464,-490.0,0.00019178,2]
[369059690,1751447470473,-490.0,0.00019178,2]
[369059691,1751447470482,-490.0,0.00019178,2]
[369059692,1751447470492,-490.0,0.00019178,2]
[369059693,1751447470501,-490.0,0.00019178,2]
[369059694,1751447470510,-490.0,0.00019178,2]
[369059695,1751447470519,-832.75,0.00019178,2]
[369059696,1751447470528,-2000.0,0.00019178,2]
[369059697,1751447470538,-490.0,0.00019178,2]
[369059698,1751447470547,-490.0,0.00019178,2]
[369059699,1751447470556,-831.02,0.00019178,2]
[369059700,1751447470565,-3430.582997,0.00019178,2]
[369059701,1751447470575,-3430.582997,0.00019178,2]
[369059702,1751447470584,-155.48042,0.00019178,2]
[369059703,1751447470593,-258.48588736,0.00019178,2]
[369059704,1751447470602,-151.0,0.00019178,2]
[369059705,1751447470611,-151.0,0.00019178,2]
[369059706,1751447470620,-151.0,0.00019178,2]
[369059707,1751447470630,-151.0,0.00019178,2]
[369059708,1751447470639,-151.0,0.00019178,2]
[369059709,1751447470648,-151.0,0.00019178,2]
[369059710,1751447470657,-151.0,0.00019178,2]
[369059711,1751447470667,-151.0,0.00019178,2]
[369059712,1751447470676,-151.0,0.00019178,2]
[369059713,1751447470685,-151.0,0.00019178,2]
[369059714,1751447470841,-159.475788,0.00019178,2]
[369059715,1751447470850,-975.25,0.00019178,2]
[369059716,1751447470861,-3297.78,0.00019178,2]
[369059717,1751447470870,-7064.0,0.000192,2]
[369059718,1751447470880,-1500.0,0.00019243,2]
[369059719,1751447470889,-851.11263688,0.00019243,2]
[369059720,1751447470898,-3277.0,0.00019255,2]
[369059721,1751447470907,-2000.73471752,0.0001926,7]
[369059722,1751447470917,-3899.93322083,0.00019262,2]
[369059723,1751447470926,-552.51,0.00019274,7]
[369059724,1751447470935,-552.51,0.00019274,7]
[369059725,1751447470944,-490.0,0.00019275,2]
[369059726,1751447470953,-490.0,0.00019275,2]
[369059727,1751447470962,-150.0,0.0001933,2]
[369059728,1751447470971,-150.99,0.00019339,2]
[369059729,1751447470981,-1009.28315797,0.000194,2]
[369059730,1751447470990,-300.0,0.00019451,2]
[369059731,1751447470999,-1615.0,0.00019452,2]
[369059732,1751447471009,-643.0,0.00019452,2]
[369059733,1751447471018,-490.0,0.00019452,2]
[369059734,1751447471028,-465.0717055,0.00019452,2]
[369059735,1751447471037,-490.0,0.00019452,2]
[369059736,1751447471047,-490.0,0.00019452,2]
[369059737,1751447471056,-490.0,0.00019452,2]
[369059738,1751447471065,-490.0,0.00019452,2]
[369059739,1751447471074,-490.0,0.00019452,2]
[369059740,1751447471083,-490.0,0.00019452,2]
[369059741,1751447471093,-620.52,0.00019452,2]
[369059742,1751447471102,-490.0,0.00019452,2]
[369059743,1751447471111,-490.0,0.00019452,2]
[369059744,1751447471120,-490.0,0.00019452,2]
[369059745,1751447471129,-490.0,0.00019452,2]
[369059746,1751447471138,-490.0,0.00019452,2]
[369059747,1751447471147,-490.0,0.00019452,2]
[369059748,1751447471156,-832.75,0.00019452,2]
[369059749,1751447471165,-490.0,0.00019452,2]
[369059750,1751447471174,-490.0,0.00019452,2]
[369059751,1751447471183,-831.02,0.00019452,2]
[369059752,1751447471192,-3000.0,0.00019512,2]
[369059753,1751447471205,-6905.66837778,0.00019525,2]
[369059754,1751447471214,-300.0,0.00019532,2]
[369059755,1751447471223,-552.51,0.00019548,7]
[369059756,1751447471233,-552.51,0.00019548,7]
[369059757,1751447471242,-490.0,0.00019549,2]
[369059758,1751447471251,-381.51215236,0.00019549,2]
[369059759,1751447471260,-365.62011858,0.00019549,2]
[369059760,1751447471269,-1000.0,0.00019703,2]
[369059761,1751447471278,-300.0,0.00019725,2]
[369059762,1751447471288,-1615.0,0.00019726,2]
[369059763,1751447471297,-643.0,0.00019726,2]
[369059764,1751447471307,-490.0,0.00019726,2]
[369059765,1751447471316,-490.0,0.00019726,2]
[369059766,1751447471325,-490.0,0.00019726,2]
[369059767,1751447471334,-490.0,0.00019726,2]
[369059768,1751447471343,-620.52,0.00019726,2]
[369059769,1751447471352,-490.0,0.00019726,2]
[369059770,1751447471361,-490.0,0.00019726,2]
[369059771,1751447471371,-490.0,0.00019726,2]
[369059772,1751447471380,-490.0,0.00019726,2]
[369059773,1751447471389,-490.0,0.00019726,2]
[369059774,1751447471399,-380.87,0.00019726,2]
[369059775,1751447471408,-832.75,0.00019726,2]
[369059776,1751447471418,-490.0,0.00019726,2]
[369059777,1751447471427,-292.38722451,0.00019726,2]
[369059778,1751447471436,-831.02,0.00019726,2]
[369059779,1751447471446,-1111.95164647,0.00019726,2]
[369059780,1751447471455,-1111.95164647,0.00019726,2]
[369059781,1751447471465,-197.015284,0.00019791,2]
[369059782,1751447471474,-197.015284,0.00019791,2]
[369059783,1751447471484,-2000.0,0.00019791,2]
[369059784,1751447471493,-231.28369723,0.00019803,2]
[369059785,1751447471502,-552.51,0.00019822,7]
[369059786,1751447471512,-552.51,0.00019822,7]
[369059787,1751447471521,-490.0,0.00019823,2]
[369059788,1751447471531,-150.0,0.00019827,2]
[369059789,1751447471540,-301.45,0.00019827,2]
[369059790,1751447471550,-3060.56639982,0.0001987,2]
[369059791,1751447471560,-5570.87788769,0.0001988,2]
[369059792,1751447471570,-11045.86785766,0.00019889,2]
[369059793,1751447471580,-3430.582997,0.00019889,2]
[369059794,1751447471589,-3430.582997,0.00019889,2]
[369059795,1751447471598,-1862.115,0.00019895,2]
[369059796,1751447471608,-887.0,0.00019895,2]
[369059797,1751447471618,-4106.0,0.00019895,2]
[369059798,1751447471627,-858.0,0.00019895,2]
[369059799,1751447471637,-156.0,0.00019895,2]
[369059800,1751447471646,-753.0,0.00019895,2]
[369059801,1751447471656,-14349.81081438,0.000199,7]
[369059802,1751447471666,-4787.27601815,0.000199,3]
[369059803,1751447471675,-2000.0,0.000199,2]
[369059804,1751447471684,-514.0,0.0001997,2]
[369059805,1751447471694,-42161.09144718,0.0001999,2]
[369059806,1751447471704,-1615.0,0.0002,2]
[369059807,1751447471714,-643.0,0.0002,2]
[369059808,1751447471723,-45606.35505248,0.0002,2]
[369059809,1751447471733,-4078.30216683,0.0002,2]
[369059810,1751447471743,-150.0,0.0002,2]
[369059811,1751447471752,-388.0,0.0002,2]
[369059812,1751447471762,-50851.16132533,0.0002,3]
[369059813,1751447471772,-500.0,0.0002,2]
[369059814,1751447471782,-207.97010733,0.0002,10]
[369059815,1751447471791,-160.35,0.0002,5]
[369059816,1751447471801,-231.4280116,0.0002,2]
[369059817,1751447471811,-5682.00178947,0.0002,2]
[369059818,1751447471820,-2000.0,0.0002,2]
[369059819,1751447471830,-303.4479965,0.0002,2]
[369059820,1751447471840,-10000.0,0.0002,2]
[369059821,1751447471849,-1493.32258722,0.0002,2]
[369059822,1751447471860,-4336.09616927,0.0002,2]
[369059823,1751447471869,-484.69511245,0.0002,2]
[369059824,1751447471879,-6078.40046604,0.0002,2]
[369059825,1751447471888,-7500.0,0.0002,2]
[369059826,1751447471898,-5697.41733212,0.0002,2]
[369059827,1751447471908,-3950.0,0.0002,2]